bitfinex/quotes_SOLUSD_20260305
["timestamp","ask_amount","ask_price","bid_price","bid_amount"]
[1772712892096,10.90405521,91.709,91.686,1.39154517]
[1772712893199,10.90405521,91.709,91.686,12.2982667]
[1772712893792,5.01654793,91.71,91.69,12.39783975]
[1772712894093,5.01654793,91.71,91.691,1.39154517]
[1772712895681,5.01654793,91.71,91.69,11.00629458]
[1772712895682,5.01654793,91.71,91.693,1.39154517]
[1772712896602,10.90339629,91.715,91.693,1.39154517]
[1772712898793,5.01654793,91.71,91.695,1.39154517]
[1772712900880,5.01654793,91.72,91.695,1.39154517]
[1772712901085,27.25372909,91.731,91.671,61.3]
[1772712901086,5.01654793,91.7,91.676,1.39154517]
[1772712901287,5.01654793,91.69,91.668,1.39154517]
[1772712901492,5.01654793,91.68,91.644,1.39154517]
[1772712901694,0.28432314,91.669,91.649,1e-08]
[1772712901997,5.01654793,91.66,91.627,1.39154517]
[1772712902175,5.01654793,91.7,91.626,10.91381745]
[1772712902373,5.01654793,91.67,91.627,1.39154517]
[1772712902696,5.01654793,91.7,91.627,1.39154517]
[1772712902697,5.01654793,91.66,91.627,1.39154517]
[1772712902999,5.01654793,91.66,91.629,1.39154517]
[1772712903195,5.01654793,91.65,91.629,1.39154517]
[1772712903501,5.01654793,91.64,91.606,10.91623646]
[1772712903696,5.01654793,91.65,91.587,2.08514797]
[1772712903697,0.28432314,91.629,91.587,2.08514797]
[1772712903891,5.01654793,91.61,91.592,10.9179532]
[1772712904098,5.01654793,91.61,91.594,1.39154517]
[1772712904287,5.01654793,91.62,91.6,1.49154517]
[1772712904595,16.84209322,91.646,91.6,1.49154517]
[1772712904596,5.01654793,91.63,91.601,1.39154517]
[1772712904984,10.91357539,91.629,91.603,1.39154517]
[1772712906205,16.84209322,91.646,91.605,1.39154517]
[1772712906382,10.91167003,91.645,91.605,1.39154517]
[1772712906579,5.01654793,91.62,91.6,0.1]
[1772712906985,5.01654793,91.62,91.593,1.39154517]
[1772712907199,5.01654793,91.61,91.593,1.39154517]
[1772712907892,5.01654793,91.62,91.595,1.39154517]
[1772712908091,5.01654793,91.62,91.596,10.91750731]
[1772712908407,5.01654793,91.64,91.597,1.39154517]
[1772712908585,15.58323522,91.645,91.597,1.39154517]
[1772712908903,43.62526869,91.69,91.597,1.39154517]
[1772712908904,5.01654793,91.67,91.601,1.39154517]
[1772712909111,16.58763737,91.685,91.601,1.39154517]
[1772712909408,9.34994113,91.689,91.601,1.39154517]
[1772712909409,20.25645403,91.689,91.601,1.39154517]
[1772712909905,5.01654793,91.67,91.603,1.67586831]
[1772712910289,10.90881323,91.669,91.61,1.39154517]
[1772712910488,10.90881323,91.669,91.612,1.39154517]
[1772712911905,11.19194647,91.679,91.614,1.39154517]
[1772712912706,10.7746148,91.65,91.614,1.39154517]
[1772712913086,10.7746148,91.66,91.614,1.39154517]
[1772712913812,10.7746148,91.64,91.592,1.39154517]
[1772712914113,10.7746148,91.66,91.594,1.39154517]
[1772712914405,10.7746148,91.66,91.596,1.67586831]
[1772712914995,10.7746148,91.64,91.596,1.39154517]
[1772712915191,10.7746148,91.64,91.598,1.39154517]
[1772712916311,10.7746148,91.64,91.6,1.39154517]
[1772712916689,10.91238446,91.639,91.6,1.39154517]
[1772712917122,10.7746148,91.66,91.6,1.67586831]
[1772712917321,10.90821825,91.674,91.602,1.39154517]
[1772712917322,0.28432314,91.673,91.602,1.39154517]
[1772712917536,10.7746148,91.66,91.602,1.39154517]
[1772712917823,10.7746148,91.67,91.602,1.39154517]
[1772712918120,10.90881323,91.669,91.605,1.39154517]
[1772712918316,10.7746148,91.65,91.605,1.39154517]
[1772712920302,10.7746148,91.68,91.61,1.39154517]
[1772712920517,10.7746148,91.68,91.612,1.39154517]
[1772712921525,38.17418333,91.685,91.612,1.39154517]
[1772712921724,10.7746148,91.66,91.612,1.39154517]
[1772712921929,10.7746148,91.65,91.612,1.39154517]
[1772712922423,10.91119379,91.649,91.614,1.39154517]
[1772712922621,10.7746148,91.64,91.614,1.39154517]
[1772712925027,10.7746148,91.64,91.615,10.91524313]
[1772712925633,10.91238446,91.639,91.615,10.91524313]
[1772712926542,10.91238446,91.639,91.614,1.39154517]
[1772712927028,10.91238446,91.639,91.615,10.91524313]
[1772712927817,10.91131284,91.648,91.615,12.3067883]
[1772712928023,10.91131284,91.648,91.616,1.39154517]
[1772712928415,10.7746148,91.64,91.604,10.91655386]
[1772712928632,10.7746148,91.64,91.605,1.39154517]
[1772712929226,10.91238446,91.639,91.607,1.39154517]
[1772712930522,38.19334562,91.639,91.607,1.39154517]
[1772712930722,38.19334562,91.639,91.591,27.2950886]
[1772712930723,10.7746148,91.63,91.599,1.39154517]
[1772712930924,10.7746148,91.63,91.601,1.39154517]
[1772712931121,0.28432314,91.638,91.601,1.39154517]
[1772712931315,38.1941792,91.637,91.603,1.39154517]
[1772712933926,38.1941792,91.637,91.604,10.91655386]
[1772712934127,38.1941792,91.637,91.605,1.39154517]
[1772712934528,10.7746148,91.63,91.599,10.91710192]
[1772712934734,10.7746148,91.63,91.599,1.39154517]
[1772712934930,10.7746148,91.63,91.6,10.91703056]
[1772712935134,10.7746148,91.63,91.601,1.39154517]
[1772712935424,27.27441332,91.661,91.603,1.39154517]
[1772712935620,0.28432314,91.649,91.603,1.39154517]
[1772712936422,10.7746148,91.64,91.605,1.39154517]
[1772712937019,47.32585367,91.676,91.605,1.39154517]
[1772712937020,10.7746148,91.66,91.605,1.39154517]
[1772712937338,0.28432314,91.659,91.605,1.39154517]
[1772712937538,10.7746148,91.65,91.605,1.39154517]
[1772712937733,10.7746148,91.64,91.605,1.39154517]
[1772712938539,10.7746148,91.64,91.607,1.39154517]
[1772712938847,10.91143617,91.647,91.607,1.39154517]
[1772712939344,10.91119379,91.649,91.607,1.39154517]
[1772712940642,38.18917827,91.649,91.609,1.39154517]
[1772712940848,10.91119379,91.649,91.609,1.39154517]
[1772712941930,10.7746148,91.64,91.609,1.39154517]
[1772712942725,10.91201324,91.643,91.611,1.39154517]
[1772712944244,10.91119379,91.649,91.613,1.39154517]
[1772712944446,7.22815389,91.648,91.613,1.39154517]
[1772712944751,7.22815389,91.647,91.613,1.39154517]
[1772712944938,10.91119379,91.649,91.613,1.39154517]
[1772712945141,7.22815389,91.648,91.613,1.39154517]
[1772712945439,10.7746148,91.63,91.601,1.39154517]
[1772712946447,10.91357539,91.629,91.603,1.39154517]
[1772712948650,10.7746148,91.63,91.605,1.39154517]
[1772712948957,10.7746148,91.63,91.594,10.9176835]
[1772712949248,27.2811585,91.639,91.592,1.39154517]
[1772712949249,10.7746148,91.62,91.592,1.39154517]
[1772712950534,10.7746148,91.62,91.59,0.1]
[1772712950535,10.91476658,91.619,91.593,1.39154517]
[1772712951136,10.91476658,91.619,91.587,0.6936028]
[1772712951137,10.7746148,91.6,91.587,0.6936028]
[1772712951652,10.7746148,91.61,91.587,0.6936028]
[1772712952537,5.03585381,91.61,91.587,0.6936028]
[1772712954754,5.03585381,91.61,91.588,1.39154517]
[1772712954959,10.91250354,91.638,91.589,1.39154517]
[1772712955163,34.51498072,91.637,91.589,1.39154517]
[1772712955460,7.23321339,91.636,91.589,1.39154517]
[1772712955760,5.03585381,91.63,91.589,1.39154517]
[1772712956466,5.03585381,91.65,91.592,1.39154517]
[1772712956761,10.91119379,91.649,91.594,1.39154517]
[1772712959159,5.03585381,91.64,91.596,1.39154517]
[1772712962664,5.03585381,91.63,91.598,1.39154517]
[1772712962883,5.03585381,91.61,91.574,10.92007784]
[1772712963164,5.03585381,91.6,91.578,1.39154517]
[1772712963368,5.03585381,91.61,91.578,1.39154517]
[1772712963943,5.03585381,91.6,91.578,1.39154517]
[1772712964453,5.03585381,91.59,91.564,10.92127008]
[1772712964767,10.91834172,91.589,91.564,10.92127008]
[1772712965153,10.91834172,91.589,91.564,12.31281525]
[1772712965468,10.91834172,91.589,91.565,1.39154517]
[1772712966776,43.63197879,91.676,91.572,1.39154517]
[1772712967074,5.03585381,91.65,91.574,1.53370674]
[1772712967364,38.17834741,91.675,91.578,1.53370674]
[1772712967549,5.03585381,91.66,91.581,0.14216157]
[1772712967749,5.03585381,91.66,91.582,1.39154517]
[1772712968660,5.03585381,91.66,91.581,0.28432314]
[1772712968661,10.91000338,91.659,91.586,3.69383402]
[1772712968855,10.91000338,91.659,91.587,1.67586831]
[1772712969449,0.28432314,91.658,91.587,1.67586831]
[1772712969747,0.14216157,91.677,91.587,1.67586831]
[1772712969947,0.28432314,91.669,91.587,1.67586831]
[1772712970558,10.77748966,91.66,91.587,1.67586831]
[1772712970761,10.91000338,91.659,91.592,1.39154517]
[1772712971662,10.77748966,91.65,91.592,1.39154517]
[1772712972458,10.91000338,91.659,91.592,1.39154517]
[1772712972861,0.28432314,91.668,91.597,1.67586831]
[1772712973749,10.90905123,91.667,91.598,38.21044127]
[1772712973955,10.90905123,91.667,91.602,1.39154517]
[1772712974965,10.77541883,91.66,91.602,1.39154517]
[1772712976659,38.18501183,91.659,91.604,1.39154517]
[1772712979172,38.18501183,91.659,91.606,1.39154517]
[1772712979376,10.91000338,91.659,91.606,1.39154517]
[1772712979671,38.18501183,91.659,91.606,1.39154517]
[1772712980995,0.28432314,91.658,91.606,1.39154517]
[1772712981356,10.91024144,91.657,91.608,1.39154517]
[1772712982277,27.27208872,91.669,91.608,1.39154517]
[1772712982477,11.19325537,91.668,91.608,1.39154517]
[1772712983163,11.0510938,91.668,91.608,1.39154517]
[1772712983363,38.32342438,91.668,91.61,1.39154517]
[1772712985269,0.14216157,91.667,91.61,1.39154517]
[1772712986186,0.14216157,91.667,91.612,1.39154517]
[1772712987783,0.14216157,91.667,91.614,1.39154517]
[1772712987982,10.77541883,91.66,91.614,1.39154517]
[1772712990570,5.02963673,91.66,91.616,1.39154517]
[1772712993884,3.69383402,91.687,91.618,1.39154517]
[1772712994071,0.28432314,91.669,91.618,1.39154517]
[1772712997214,0.28432314,91.669,91.617,38.20251699]
[1772712997215,0.28432314,91.667,91.62,1.39154517]
[1772712999579,0.28432314,91.649,91.607,1.39154517]
[1772712999895,5.02963673,91.63,91.605,61.3]
[1772713000086,5.02963673,91.63,91.593,10.91775723]
[1772713000693,5.02963673,91.61,91.536,1.39154517]
[1772713000889,5.02963673,91.6,91.537,1.39154517]
[1772713001394,5.02963673,91.6,91.54,1.39154517]
[1772713001788,10.91714975,91.599,91.542,1.39154517]
[1772713001986,38.21002412,91.599,91.542,1.39154517]
[1772713004196,38.21002412,91.599,91.544,1.39154517]
[1772713004411,5.02963673,91.59,91.544,1.39154517]
[1772713005283,5.02963673,91.58,91.544,1.39154517]
[1772713006186,10.91953395,91.579,91.545,10.92358949]
[1772713006391,10.91953395,91.579,91.546,1.39154517]
[1772713007801,38.21836883,91.579,91.539,12.3157815]
[1772713008003,38.21836883,91.579,91.54,1.39154517]
[1772713008500,5.02963673,91.58,91.542,1.39154517]
[1772713008894,5.02963673,91.58,91.512,0.28432314]
[1772713008895,5.02963673,91.57,91.535,1.39154517]
[1772713009299,5.02963673,91.57,91.502,0.28432314]
[1772713009300,0.28432314,91.592,91.527,1.39154517]
[1772713009494,5.02963673,91.56,91.527,1.39154517]
[1772713009993,5.02963673,91.56,91.53,1.49154517]
[1772713010389,1.2225225,91.549,91.494,3.69383402]
[1772713010603,1.2225225,91.549,91.478,5.68740953]
[1772713010604,1.2225225,91.529,91.478,5.68740953]
[1772713010794,1.2225225,91.529,91.496,10.9293986]
[1772713011114,3.69383402,91.556,91.498,1e-08]
[1772713011115,5.02963673,91.52,91.498,1e-08]
[1772713011593,1.21921494,91.519,91.498,1e-08]
[1772713012598,1.21594386,91.517,91.498,1e-08]
[1772713012807,5.02963673,91.51,91.498,1e-08]
[1772713013387,1.21594386,91.517,91.498,1e-08]
[1772713014993,10.927051,91.516,91.498,1e-08]
[1772713015709,5.02963673,91.53,91.498,1.23292488]
[1772713015889,1.2234838,91.529,91.488,38.25638334]
[1772713016086,1.2234838,91.529,91.488,10.93039524]
[1772713017086,1.2234838,91.527,91.457,0.28432314]
[1772713017287,1.2234838,91.509,91.46,0.28432314]
[1772713017790,1.2234838,91.509,91.475,1.23292487]
[1772713019006,1.2234838,91.509,91.481,1.23292487]
[1772713019505,10.92757295,91.512,91.491,1.23292487]
[1772713020206,1.2234838,91.516,91.491,1.23292487]
[1772713020815,1.2234838,91.509,91.477,10.93168976]
[1772713021017,12.15051329,91.517,91.491,1.23292487]
[1772713021193,1.2234838,91.534,91.491,1.23292487]
[1772713021511,1.2234838,91.509,91.476,1.23292487]
[1772713021699,1.2234838,91.509,91.476,12.16471931]
[1772713022312,5.02963673,91.5,91.479,10.93136917]
[1772713022811,1.2234838,91.499,91.476,1.23292487]
[1772713023217,1.50780694,91.519,91.491,1.23292487]
[1772713023402,5.02963673,91.51,91.484,1.23292487]
[1772713023715,6.25312053,91.51,91.484,1.23292487]
[1772713024091,6.25312053,91.51,91.482,10.93100514]
[1772713024092,1.2234838,91.499,91.449,1.23292487]
[1772713024323,1.2234838,91.489,91.449,1.23292487]
[1772713024612,1.2234838,91.499,91.449,1.23292487]
[1772713024796,1.2234838,91.508,91.449,1.23292487]
[1772713024994,1.50780694,91.517,91.452,1.23292487]
[1772713025897,1.2234838,91.509,91.454,1.23292487]
[1772713026798,1.50780694,91.509,91.454,1.23292487]
[1772713027112,1.2234838,91.499,91.454,1.23292487]
[1772713027495,38.52900165,91.516,91.454,1.23292487]
[1772713027496,1.2234838,91.509,91.454,1.23292487]
[1772713027697,12.04179305,91.51,91.454,1.23292487]
[1772713027893,1.2234838,91.469,91.439,10.93625258]
[1772713028113,0.08683577,91.469,91.44,1.23292487]
[1772713028497,10.81830925,91.47,91.44,1.23292487]
[1772713028715,0.28432314,91.477,91.44,1.23292487]
[1772713028915,10.81830925,91.47,91.44,1.23292487]
[1772713029114,10.81830925,91.47,91.438,6.95279749]
[1772713029115,10.81830925,91.46,91.438,6.95279749]
[1772713029303,10.81830925,91.45,91.438,6.95279749]
[1772713029616,10.81830925,91.45,91.422,1.23292487]
[1772713029818,10.81830925,91.45,91.361,6.88998289]
[1772713029819,0.14216157,91.449,91.39,1.33292487]
[1772713030022,10.81830925,91.41,91.397,1.23292487]
[1772713030235,10.81830925,91.42,91.397,1.23292487]
[1772713030402,0.14216157,91.429,91.397,1.23292487]
[1772713030600,0.14216157,91.429,91.401,1.51793887]
[1772713030601,10.81830925,91.42,91.401,1.51793887]
[1772713030809,10.81830925,91.42,91.401,1e-08]
[1772713031015,12.04179305,91.42,91.39,0.1]
[1772713031217,10.81830925,91.41,91.39,0.1]
[1772713031405,10.81830925,91.41,91.314,1.09512232]
[1772713031406,1.2234838,91.399,91.321,43.80134977]
[1772713031599,1.2234838,91.399,91.36,10.94567984]
[1772713031907,1.2234838,91.397,91.347,27.36812159]
[1772713032107,1.50780694,91.397,91.346,10.94736972]
[1772713032404,1.50780694,91.397,91.311,5.68134091]
[1772713032405,1.2234838,91.359,91.311,5.68134091]
[1772713032609,1.2234838,91.371,91.314,10.95122325]
[1772713032919,0.28432314,91.359,91.315,1.16199565]
[1772713033112,1.2234838,91.349,91.315,1.16199565]
[1772713033301,1.2234838,91.339,91.305,1.16475084]
[1772713033551,1.50780694,91.339,91.294,6.94390799]
[1772713033806,10.81830925,91.33,91.294,17.89750014]
[1772713034039,1.2234838,91.329,91.299,10.95300799]
[1772713034326,1.2234838,91.34,91.304,1.16475084]
[1772713034906,1.2234838,91.34,91.314,10.95122325]
[1772713035416,1.2234838,91.349,91.304,1.17015323]
[1772713035731,1.2234838,91.36,91.314,1.17015323]
[1772713035907,1.2234838,91.369,91.317,1.17015323]
[1772713036818,1.2234838,91.379,91.317,1.45447637]
[1772713037130,10.85251198,91.38,91.32,1.4571352]
[1772713037703,1.2234838,91.369,91.32,1.17281206]
[1772713037904,1.2234838,91.359,91.321,10.95038381]
[1772713038324,0.28432314,91.376,91.321,10.95038381]
[1772713038325,1.2234838,91.372,91.322,1.17970997]
[1772713038530,1.2234838,91.383,91.325,1.17970997]
[1772713039534,1.1827287,91.393,91.325,1.17970997]
[1772713039723,1.1827287,91.421,91.325,1.46403311]
[1772713039923,1.1827287,91.421,91.335,1.17357028]
[1772713040111,1.1827287,91.439,91.345,1.17357028]
[1772713040310,1.1827287,91.439,91.345,1.45789342]
[1772713041023,1.1827287,91.459,91.355,1.17357028]
[1772713041223,1.1827287,91.439,91.355,1.17357028]
[1772713042019,1.1827287,91.439,91.36,1.45789342]
[1772713043213,1.1827287,91.439,91.362,1.45789342]
[1772713043614,1.1827287,91.439,91.364,1.45789342]
[1772713044026,10.85251198,91.46,91.369,1.45789342]
[1772713044232,1.1827287,91.459,91.374,1.45789342]
[1772713044532,1.1827287,91.479,91.374,1.45789342]
[1772713044836,1.1827287,91.479,91.381,1.17357028]
[1772713045628,1.1827287,91.499,91.404,1.17357028]
[1772713045837,10.85251198,91.5,91.404,1.17357028]
[1772713045838,10.85251198,91.47,91.404,1.17357028]
[1772713046138,1.1827287,91.459,91.406,1.17357028]
[1772713046339,1.1827287,91.459,91.406,1.45789342]
[1772713048630,1.1827287,91.459,91.408,1.49597123]
[1772713048833,1.1827287,91.459,91.408,1.21164809]
[1772713049532,1.1827287,91.459,91.408,1.49597123]
[1772713049731,1.24571238,91.478,91.411,1.49814326]
[1772713049943,1.24571238,91.469,91.411,1.49814326]
[1772713050117,1.24571238,91.449,91.411,1.21382012]
[1772713050433,1.24571238,91.449,91.407,38.2902841]
[1772713051436,1.24571238,91.449,91.408,1.21807738]
[1772713051940,1.24571238,91.469,91.411,1.50240052]
[1772713052316,1.24571238,91.469,91.411,1.21807738]
[1772713052518,1.24571238,91.449,91.412,38.28818973]
[1772713052717,1.24571238,91.449,91.412,39.50836069]
[1772713053633,1.24571238,91.459,91.413,1.2239181]
[1772713054934,1.24571238,91.459,91.415,1.22594416]
[1772713055140,0.28432314,91.469,91.415,1.5102673]
[1772713055141,1.24571238,91.469,91.415,1.5102673]
[1772713055315,4.96693726,91.504,91.418,1.29534017]
[1772713055517,10.85251198,91.48,91.418,1.57966331]
[1772713055937,10.85251198,91.49,91.423,1.29534017]
[1772713056237,10.85251198,91.49,91.423,1.57966331]
[1772713056742,10.85251198,91.48,91.425,1.57966331]
[1772713057034,4.82477569,91.521,91.424,38.28316415]
[1772713057035,10.85251198,91.46,91.424,38.28316415]
[1772713057236,1.24571238,91.459,91.424,38.28316415]
[1772713057433,1.24571238,91.459,91.425,1.29534017]
[1772713057829,1.24571238,91.477,91.425,1.29534017]
[1772713058028,1.24571238,91.469,91.425,1.29534017]
[1772713058237,1.24571238,91.449,91.424,10.9380469]
[1772713058820,1.24571238,91.439,91.402,27.35169064]
[1772713059038,1.24571238,91.439,91.403,1.29534017]
[1772713061423,1.24571238,91.439,91.404,38.29154084]
[1772713061632,1.24571238,91.439,91.405,1.29534017]
[1772713063042,1.24571238,91.439,91.404,38.29154084]
[1772713063240,1.24571238,91.429,91.395,10.94151758]
[1772713063422,1.24571238,91.429,91.396,1.29534017]
[1772713063624,1.24571238,91.429,91.398,1.29534017]
[1772713063818,1.24571238,91.447,91.398,1.29534017]
[1772713064240,10.85251198,91.46,91.399,1.29534017]
[1772713064429,10.85251198,91.46,91.398,0.28432314]
[1772713064430,10.85251198,91.47,91.401,1.29534017]
[1772713065332,10.85251198,91.48,91.403,1.29534017]
[1772713065524,21.78278746,91.49,91.408,1.29534017]
[1772713065737,0.28432314,91.489,91.408,1.57966331]
[1772713065926,10.85251198,91.48,91.408,1.57966331]
[1772713066125,10.85251198,91.47,91.408,1.57966331]
[1772713066331,1.24571238,91.469,91.408,1.57966331]
[1772713068626,1.24571238,91.467,91.413,1.29534017]
[1772713068827,1.24571238,91.467,91.414,1.24061211]
[1772713069249,1.27603242,91.476,91.414,1.52493525]
[1772713070651,1.27603242,91.513,91.419,1.24061211]
[1772713070848,1.27603242,91.499,91.424,1.24061211]
[1772713071062,1.27603242,91.499,91.424,1.52493525]
[1772713071946,1.27603242,91.489,91.424,1.52493525]
[1772713072154,1.27603242,91.489,91.429,1.52493525]
[1772713072353,38.24593227,91.513,91.429,1.52493525]
[1772713072354,1.27603242,91.479,91.429,1.52493525]
[1772713072735,1.27603242,91.479,91.433,3.69383402]
[1772713073036,1.27603242,91.479,91.434,1.24061211]
[1772713074735,1.27603242,91.479,91.436,1.24061211]
[1772713075839,1.27603242,91.479,91.437,38.27772127]
[1772713076039,1.27603242,91.479,91.438,1.24061211]
[1772713077968,1.27603242,91.479,91.44,1.24061211]
[1772713079562,1.27603242,91.478,91.44,1.24061211]
[1772713080256,1.27603242,91.478,91.442,1.24061211]
[1772713080461,5.68895062,91.525,91.445,1.24061211]
[1772713080761,5.68895062,91.525,91.444,3.69383402]
[1772713080762,10.85251198,91.49,91.447,1.24061211]
[1772713081858,10.85251198,91.5,91.447,1.24061211]
[1772713082356,10.85251198,91.49,91.449,1.24061211]
[1772713082761,0.31711272,91.489,91.449,1.24061211]
[1772713083740,10.85251198,91.49,91.449,1.24061211]
[1772713083940,10.85251198,91.5,91.449,1.24061211]
[1772713085147,0.31919735,91.514,91.451,1.24061211]
[1772713085347,10.85251198,91.51,91.451,1.24061211]
[1772713085658,0.32102611,91.509,91.451,1.24061211]
[1772713086257,0.32102611,91.528,91.454,1.24061211]
[1772713086462,10.85251198,91.53,91.459,1.24061211]
[1772713086664,4.82477569,91.561,91.45,10.93493712]
[1772713086665,10.85251198,91.48,91.45,10.93493712]
[1772713086843,10.85251198,91.47,91.45,10.93493712]
[1772713087042,0.28432314,91.505,91.451,1.24061211]
[1772713087043,10.85251198,91.48,91.451,1.24061211]
[1772713087281,10.85251198,91.48,91.453,1.24061211]
[1772713088972,10.85251198,91.48,91.454,10.93445885]
[1772713089671,0.3298223,91.488,91.454,12.17507096]
[1772713090165,0.3298223,91.469,91.454,10.93445885]
[1772713090668,10.85251198,91.47,91.454,10.93445885]
[1772713091173,10.85251198,91.47,91.44,1.24061211]
[1772713091547,0.33153584,91.477,91.44,1.24061211]
[1772713091964,10.85251198,91.49,91.44,1.24061211]
[1772713092976,0.33489562,91.489,91.442,1.24061211]
[1772713093157,104.9,91.558,91.445,1.24061211]
[1772713093158,10.85251198,91.5,91.445,1.24061211]
[1772713093596,0.336548,91.499,91.445,1.24061211]
[1772713093948,0.336548,91.507,91.445,1.52493525]
[1772713094147,0.336548,91.517,91.445,1.52493525]
[1772713094957,10.92567607,91.528,91.45,1.24061211]
[1772713095159,0.28432314,91.527,91.45,1.52493525]
[1772713095358,0.62410307,91.527,91.45,1.52493525]
[1772713095554,0.33977993,91.526,91.45,1.52493525]
[1772713095767,10.92382616,91.544,91.452,1.24061211]
[1772713095956,0.33977993,91.539,91.454,1.52493525]
[1772713096365,0.33977993,91.539,91.456,1.52493525]
[1772713096773,0.33977993,91.539,91.458,1.52493525]
[1772713096955,0.34307057,91.529,91.465,1.24061211]
[1772713097159,0.34307057,91.529,91.465,1.52493525]
[1772713098470,0.34307057,91.529,91.467,1.52493525]
[1772713098675,0.34307057,91.529,91.466,1.37762556]
[1772713098676,0.34307057,91.529,91.472,1.52493525]
[1772713099374,0.3492219,91.538,91.472,1.52493525]
[1772713100658,0.3492219,91.538,91.477,1.59853301]
[1772713101096,0.3507213,91.564,91.479,1.31420987]
[1772713101282,10.92191919,91.559,91.479,1.59853301]
[1772713101581,10.92191919,91.559,91.481,1.59853301]
[1772713101761,0.55217842,91.56,91.483,1.59853301]
[1772713102082,0.55217842,91.56,91.485,0.14216157]
[1772713102083,0.35217842,91.559,91.485,0.14216157]
[1772713102382,11.12184067,91.56,91.473,38.26265674]
[1772713102383,0.35361879,91.517,91.486,1.31420987]
[1772713102582,0.35361879,91.526,91.488,1.31420987]
[1772713102962,10.80700728,91.52,91.488,1.31420987]
[1772713103276,0.35503939,91.519,91.488,1.31420987]
[1772713104782,0.35503939,91.519,91.489,10.93027577]
[1772713105767,10.80700728,91.5,91.467,1.31420987]
[1772713105963,0.35623298,91.499,91.467,1.31420987]
[1772713106780,0.35762348,91.509,91.469,1.31420987]
[1772713108782,0.35762348,91.509,91.471,1.3227699]
[1772713109175,0.36181966,91.507,91.471,1.3227699]
[1772713110985,0.36444869,91.505,91.472,10.93230715]
[1772713111278,0.36444869,91.499,91.467,10.66280253]
[1772713111793,0.36444869,91.499,91.467,11.98557243]
[1772713111995,10.80700728,91.52,91.468,1.3227699]
[1772713112291,11.06563173,91.546,91.468,1.3227699]
[1772713112292,0.36575688,91.509,91.468,1.3227699]
[1772713112497,0.36703076,91.499,91.467,10.66280253]
[1772713112664,0.36703076,91.489,91.447,10.93529585]
[1772713112869,0.36703076,91.489,91.43,0.28432314]
[1772713112870,0.36703076,91.488,91.45,1.3227699]
[1772713113071,0.36703076,91.498,91.45,1.3227699]
[1772713113682,11.17531187,91.49,91.45,1.3227699]
[1772713113884,0.36830459,91.489,91.45,1.3227699]
[1772713115786,0.28432314,91.515,91.435,3.69383402]
[1772713115787,0.37078785,91.501,91.452,1.3227699]
[1772713116579,0.37200542,91.508,91.455,1.3227699]
[1772713117281,0.37200542,91.499,91.455,1.3227699]
[1772713117479,10.80700728,91.49,91.455,1.3227699]
[1772713117681,11.18021805,91.49,91.455,1.3227699]
[1772713117877,10.80700728,91.5,91.457,1.3227699]
[1772713118084,0.37321077,91.499,91.457,1.3227699]
[1772713118273,0.37440486,91.479,91.444,10.9356546]
[1772713119385,0.37440486,91.479,91.444,39.59756102]
[1772713119789,0.37440486,91.479,91.445,1.3227699]
[1772713121393,11.3088142,91.484,91.445,1.3227699]
[1772713121598,0.37791932,91.483,91.445,1.3227699]
[1772713122473,0.37791932,91.483,91.447,1.3227699]
[1772713122704,5.0489675,91.48,91.447,1.3227699]
[1772713122897,0.37738001,91.489,91.447,1.3227699]
[1772713123630,0.37685894,91.479,91.447,1.3227699]
[1772713124700,0.37685894,91.479,91.449,1.3227699]
[1772713124891,10.93006052,91.491,91.449,1.3227699]
[1772713124892,0.37482049,91.489,91.449,1.3227699]
[1772713126202,104.9,91.524,91.449,1.3227699]
[1772713126203,0.37431888,91.499,91.45,1.3227699]
[1772713126394,0.37431888,91.499,91.45,1.60709304]
[1772713126798,0.37431888,91.499,91.452,1.3227699]
[1772713128000,0.37495362,91.497,91.452,1.3227699]
[1772713128306,0.37495362,91.489,91.452,1.3227699]
[1772713129603,0.37495362,91.489,91.453,38.27102445]
[1772713129804,0.37495362,91.489,91.454,1.32137466]
[1772713132405,0.37256141,91.504,91.456,1.32137466]
[1772713133705,5.0489675,91.52,91.461,1.3647354]
[1772713134210,5.0489675,91.52,91.465,3.69383402]
[1772713134403,5.0489675,91.52,91.466,1.3647354]
[1772713135097,5.0489675,91.51,91.466,1.3647354]
[1772713135596,5.0489675,91.52,91.466,1.3647354]
[1772713137604,38.24342485,91.519,91.468,1.3647354]
[1772713137805,10.92669281,91.519,91.468,1.3647354]
[1772713139811,5.0489675,91.51,91.47,1.3647354]
[1772713140914,10.92490222,91.534,91.473,1.3647354]
[1772713141612,1e-08,91.541,91.478,1.3647354]
[1772713141805,1e-08,91.541,91.485,1.3647354]
[1772713141998,1e-08,91.541,91.487,1.3647354]
[1772713142314,1e-08,91.56,91.489,1.64905854]
[1772713142513,1e-08,91.56,91.491,1.64905854]
[1772713142704,1e-08,91.56,91.493,1.3647354]
[1772713143018,1e-08,91.56,91.495,1.64905854]
[1772713143217,0.2,91.57,91.496,1.64905854]
[1772713143510,0.67085941,91.587,91.499,1.3647354]
[1772713143716,0.67085941,91.587,91.502,1.64905854]
[1772713143899,0.67085941,91.587,91.507,1.64905854]
[1772713145003,0.67085941,91.587,91.508,1.64905854]
[1772713145004,1e-08,91.587,91.508,1.64905854]
[1772713145317,6.72078321,91.609,91.513,1.64905854]